lending/lending_fUSD_20250411
["ID","MTS","AMOUNT","RATE_DAILY","PERIOD"]
[357735593,1744403440894,-151.44,0.0002,2]
[357735595,1744403440903,-151.44,0.0002,2]
[357735597,1744403440913,-151.44,0.0002,2]
[357735598,1744403440922,-151.44,0.0002,2]
[357735599,1744403440931,-151.44,0.0002,2]
[357735600,1744403440941,-151.44,0.0002,2]
[357735601,1744403440950,-151.44,0.0002,2]
[357735602,1744403440959,-151.44,0.0002,2]
[357735603,1744403440969,-151.44,0.0002,2]
[357735604,1744403440977,-151.44,0.0002,2]
[357735605,1744403440987,-151.44,0.0002,2]
[357735606,1744403440996,-151.44,0.0002,2]
[357735607,1744403441005,-151.44,0.0002,2]
[357735608,1744403441014,-151.44,0.0002,2]
[357735609,1744403441023,-151.44,0.0002,2]
[357735610,1744403441033,-151.44,0.0002,2]
[357735611,1744403441042,-151.44,0.0002,2]
[357735612,1744403441051,-151.44,0.0002,2]
[357735613,1744403441060,-151.44,0.0002,2]
[357735614,1744403441069,-151.44,0.0002,2]
[357735615,1744403441078,-500.23433224,0.0002001,2]
[357735616,1744403441088,-150.0,0.00020156,2]
[357735617,1744403441099,-2823.19,0.00020285,2]
[357735618,1744403441109,-200.0,0.00020285,2]
[357735619,1744403441118,-23900.0,0.00020356,2]
[357735620,1744403441127,-500.0,0.00020685,2]
[357735621,1744403441137,-2354.88071018,0.00021,2]
[357735622,1744403441147,-300.0,0.00021,2]
[357735623,1744403441157,-250.0,0.00021031,2]
[357735624,1744403441167,-250.0,0.00021067,2]
[357735625,1744403441177,-250.0,0.00021067,2]
[357735626,1744403441186,-888.25,0.00021068,2]
[357735627,1744403441196,-200.0,0.00021248,2]
[357735628,1744403441205,-12538.72,0.00021294,2]
[357735629,1744403441215,-160.48,0.00021301,2]
[357735630,1744403441224,-3615.0,0.00021349,2]
[357735631,1744403441233,-5095.91,0.0002137,2]
[357735632,1744403441242,-1000.0,0.00021408,2]
[357735633,1744403441251,-200.0,0.00021459,7]
[357735634,1744403441261,-162.32,0.0002146,2]
[357735635,1744403441271,-18481.05,0.00021489,2]
[357735636,1744403441281,-203.75,0.00021494,2]
[357735637,1744403441290,-8230.58,0.00021547,2]
[357735638,1744403441300,-162.32,0.00021567,2]
[357735639,1744403441310,-500.0,0.00021572,2]
[357735640,1744403441319,-250.0,0.00021591,2]
[357735641,1744403441329,-250.0,0.0002168,2]
[357735642,1744403441338,-184.48,0.00021733,2]
[357735643,1744403441347,-1773.18,0.00021903,2]
[357735644,1744403441356,-252.07,0.00021917,2]
[357735645,1744403441366,-343.95,0.00021918,2]
[357735646,1744403441375,-300.0,0.00021918,2]
[357735647,1744403441385,-166.67,0.00021922,2]
[357735648,1744403441394,-302.41,0.00022055,2]
[357735649,1744403441403,-302.41,0.00022061,2]
[357735650,1744403441412,-302.41,0.00022067,2]
[357735651,1744403441422,-302.41,0.00022073,2]
[357735652,1744403441431,-302.41,0.00022079,2]
[357735653,1744403441441,-302.41,0.00022084,2]
[357735654,1744403441450,-302.41,0.0002209,2]
[357735655,1744403441459,-302.41,0.00022096,2]
[357735656,1744403441469,-302.41,0.00022102,2]
[357735657,1744403441478,-302.41,0.00022108,2]
[357735658,1744403441487,-302.41,0.00022113,2]
[357735659,1744403441496,-302.41,0.00022119,2]
[357735660,1744403441505,-302.41,0.00022125,2]
[357735661,1744403441515,-302.41,0.00022131,2]
[357735662,1744403441524,-302.41,0.00022137,2]
[357735663,1744403441533,-302.41,0.00022142,2]
[357735664,1744403441543,-302.41,0.00022148,2]
[357735665,1744403441552,-302.41,0.00022154,2]
[357735666,1744403441562,-302.41,0.0002216,2]
[357735667,1744403441571,-302.41,0.00022166,2]
[357735668,1744403441581,-284.68,0.00022295,2]
[357735669,1744403441590,-300.0,0.00022978,2]
[357735670,1744403441599,-350.0,0.00023,2]
[357735671,1744403441609,-2722.2090388,0.000232,2]
[357735672,1744403441618,-252.07,0.00023287,2]
[357735673,1744403441628,-500.0,0.00023425,2]
[357735674,1744403441637,-166.67,0.00023731,2]
[357735675,1744403441647,-757.97,0.00023836,2]
[357735676,1744403441656,-427.27001393,0.00023919,2]
[357735677,1744403441665,-4639.04478276,0.00024,2]
[357735678,1744403441676,-1000.0,0.00024084,2]
[357735679,1744403441686,-1773.18,0.00024167,2]
[357735680,1744403441695,-300.0,0.00024347,2]
[357735681,1744403441705,-252.07,0.00024657,2]
[357735682,1744403441715,-1000.0,0.00024658,2]
[357735683,1744403441724,-951.0,0.00024767,2]
[357735684,1744403441734,-500.0,0.00024773,2]
[357735685,1744403441743,-500.0,0.00024773,2]
[357735686,1744403441752,-500.0,0.00024773,2]
[357735687,1744403441763,-151.44,0.0002479,2]
[357735688,1744403441772,-120862.237735,0.000248,3]
[357735689,1744403441782,-501.22751994,0.00024873,2]
[357735690,1744403441791,-151.44,0.0002489,2]
[357735691,1744403441801,-151.0,0.000249,7]
[357735692,1744403441811,-151.0,0.000249,7]
[357735693,1744403441821,-156.185438,0.000249,7]
[357735694,1744403441830,-151.0,0.000249,7]
[357735695,1744403441840,-151.0,0.000249,7]
[357735696,1744403441850,-151.0,0.000249,7]
[357735697,1744403441860,-151.0,0.000249,7]
[357735698,1744403441870,-151.0,0.000249,7]
[357735699,1744403441880,-151.0,0.000249,7]
[357735700,1744403441890,-151.0,0.000249,7]
[357735701,1744403441899,-151.0,0.000249,7]
[357735702,1744403441910,-151.0,0.000249,7]
[357735703,1744403441920,-299.688912,0.000249,7]
[357735704,1744403441930,-151.0,0.000249,7]
[357735705,1744403441940,-88980.2181559,0.000249,3]
[357735706,1744403441950,-348.985679,0.000249,7]
[357735707,1744403441959,-151.907843,0.000249,7]
[357735708,1744403441969,-348.985679,0.000249,7]
[357735709,1744403442136,-151.0,0.000249,7]
[357735710,1744403442147,-151.0,0.000249,7]
[357735711,1744403442158,-151.0,0.000249,7]
[357735712,1744403442167,-151.0,0.000249,7]
[357735713,1744403442182,-160.948192,0.000249,7]
[357735714,1744403442191,-152.372772,0.000249,7]
[357735715,1744403442201,-151.0,0.000249,7]
[357735716,1744403442210,-814.499223,0.000249,7]
[357735717,1744403442220,-814.499223,0.000249,7]
[357735718,1744403442230,-151.0,0.000249,7]
[357735719,1744403442239,-151.0,0.000249,7]
[357735720,1744403442249,-256.066618,0.000249,7]
[357735721,1744403442258,-746.21,0.0002498,2]
[357735722,1744403442268,-150.99,0.0002498,2]
[357735723,1744403442277,-1177.93,0.0002498,2]
[357735724,1744403442287,-963.11,0.0002498,2]
[357735725,1744403442296,-9999.99,0.0002498,2]
[357735726,1744403442306,-999.99,0.0002498,2]
[357735727,1744403442315,-2534.19,0.0002498,2]
[357735728,1744403442325,-4981.39,0.0002498,2]
[357735729,1744403442334,-508.22,0.0002498,2]
[357735730,1744403442343,-150.99,0.0002498,2]
[357735731,1744403442352,-2344.47,0.0002498,2]
[357735732,1744403442362,-725.56,0.0002498,2]
[357735733,1744403442371,-164.15081996,0.00025,2]
[357735734,1744403442380,-400.0,0.00025,2]
[357735735,1744403442389,-1883.18408762,0.00025,7]
[357735736,1744403442400,-4722.7196274,0.00025298,2]
[357735737,1744403442409,-510.0,0.00025315,2]
[357735738,1744403442420,-166.66,0.00025517,2]
[357735739,1744403442429,-166.67,0.00025541,2]
[357735740,1744403442438,-791.0,0.00025645,2]
[357735741,1744403442447,-1278.0,0.00025645,2]
[357735742,1744403442457,-544.0,0.00025645,2]
[357735743,1744403442466,-1437.0,0.00025645,2]
[357735744,1744403442475,-907.0,0.00025645,2]
[357735745,1744403442484,-4145.0,0.00025645,2]
[357735746,1744403442494,-661.988,0.00025645,2]
[357735747,1744403442503,-2045.0,0.00025645,2]
[357735748,1744403442512,-153.34,0.00025645,2]
[357735749,1744403442521,-3961.0,0.00025645,2]
[357735750,1744403442530,-1287.0,0.00025645,2]
[357735751,1744403442539,-155.308,0.00025645,2]
[357735752,1744403442548,-1327.0,0.00025645,2]
[357735753,1744403442558,-167.0,0.00025726,2]
[357735754,1744403442567,-252.07,0.00026027,2]
[357735755,1744403442577,-1773.18,0.0002643,2]
[357735756,1744403442586,-1000.0,0.0002676,2]
[357735757,1744403442596,-442.33,0.00026813,2]
[357735758,1744403442606,-832.22,0.00026849,2]
[357735759,1744403442616,-156.66,0.00026849,2]
[357735760,1744403442625,-450.0,0.00027,2]
[357735761,1744403442635,-3537.61,0.00027123,2]
[357735762,1744403442644,-500.0,0.00027397,2]
[357735763,1744403442653,-625.40939581,0.00027397,2]
[357735764,1744403442663,-252.07,0.00027397,2]
[357735765,1744403442673,-1504.22,0.00027397,2]
[357735766,1744403442682,-915.54067083,0.000274,2]
[357735767,1744403442692,-1273.0,0.000274,2]
[357735768,1744403442701,-2000.0,0.000275,4]
[357735769,1744403442711,-166.66,0.00027622,2]
[357735770,1744403442720,-427.27001393,0.00027937,2]
[357735771,1744403442729,-791.0,0.00028645,2]
[357735772,1744403442738,-1278.0,0.00028645,2]
[357735773,1744403442747,-544.0,0.00028645,2]
[357735774,1744403442757,-1437.0,0.00028645,2]
[357735775,1744403442766,-907.0,0.00028645,2]
[357735776,1744403442776,-4145.0,0.00028645,2]
[357735777,1744403442785,-575.0,0.00028645,2]
[357735778,1744403442795,-2045.0,0.00028645,2]
[357735779,1744403442805,-3961.0,0.00028645,2]
[357735781,1744403442815,-1287.0,0.00028645,2]
[357735782,1744403442825,-152.0,0.00028645,2]
[357735784,1744403442835,-1327.0,0.00028645,2]
[357735786,1744403442845,-1773.18,0.00028694,2]
[357735788,1744403442854,-252.07,0.00028767,2]
[357735789,1744403442864,-1504.22,0.00028767,2]
[357735790,1744403442874,-500.0,0.00029,2]
[357735791,1744403442884,-1000.0,0.00029436,2]
[357735792,1744403442894,-177.19,0.00029722,2]
[357735794,1744403442905,-166.66,0.00029728,2]
[357735796,1744403442915,-151.44,0.00029889,2]
[357735797,1744403442926,-500.0,0.00029899,2]
[357735798,1744403442935,-500.0,0.00029899,2]
[357735799,1744403442945,-500.0,0.00029899,2]
[357735800,1744403442954,-500.0,0.00029899,2]
[357735801,1744403442964,-500.0,0.00029899,2]
[357735802,1744403442974,-500.0,0.00029899,2]
[357735803,1744403442983,-500.0,0.00029899,2]
[357735804,1744403442992,-500.0,0.00029899,2]
[357735805,1744403443002,-500.0,0.00029899,2]
[357735806,1744403443011,-500.0,0.00029899,2]
[357735807,1744403443020,-500.0,0.00029899,2]
[357735808,1744403443030,-500.0,0.00029899,2]
[357735809,1744403443039,-440.7734375,0.00029899,2]
[357735810,1744403443048,-75609.14826537,0.000299,2]
[357735811,1744403443058,-151.44,0.0002999,2]
[357735812,1744403443067,-500.0,0.00029999,2]
[357735813,1744403443076,-500.0,0.00029999,2]
[357735814,1744403443085,-500.0,0.00029999,2]
[357735815,1744403443095,-500.0,0.00029999,2]
[357735816,1744403443108,-500.0,0.00029999,2]
[357735817,1744403443117,-500.0,0.00029999,2]
[357735818,1744403443127,-500.0,0.00029999,2]
[357735819,1744403443136,-500.0,0.00029999,2]
[357735820,1744403443147,-500.0,0.00029999,2]
[357735821,1744403443156,-500.0,0.00029999,2]
[357735822,1744403443165,-500.0,0.00029999,2]
[357735823,1744403443177,-22519.72117546,0.0003,2]
[357735824,1744403443186,-128733.32778813,0.0003,2]
[357735825,1744403443196,-235.98934091,0.0003,2]
[357735826,1744403443206,-194.2,0.0003,2]
[357735827,1744403443215,-1000.0,0.0003,3]
[357735828,1744403443225,-151.0,0.0003,7]
[357735829,1744403443234,-151.0,0.0003,7]
[357735830,1744403443243,-151.0,0.0003,7]
[357735831,1744403443253,-197.954746,0.0003,7]
[357735832,1744403443262,-151.0,0.0003,7]
[357735833,1744403443271,-151.200285,0.0003,7]
[357735834,1744403443280,-280.922104,0.0003,7]
[357735835,1744403443289,-151.0,0.0003,7]
[357735836,1744403443298,-151.0,0.0003,7]
[357735837,1744403443307,-306.775715,0.0003,7]
[357735838,1744403443317,-306.775715,0.0003,7]
[357735839,1744403443326,-151.0,0.0003,7]
[357735840,1744403443336,-151.0,0.0003,7]
[357735841,1744403443345,-151.0,0.0003,7]
[357735842,1744403443354,-151.0,0.0003,7]
[357735843,1744403443363,-151.0,0.0003,7]
[357735844,1744403443372,-159.285862,0.0003,7]
[357735845,1744403443382,-151.0,0.0003,7]
[357735846,1744403443390,-267.219342,0.0003,7]
[357735847,1744403443399,-151.0,0.0003,7]
[357735848,1744403443408,-238.178528,0.0003,7]
[357735849,1744403443417,-151.0,0.0003,7]
[357735850,1744403443427,-238.178528,0.0003,7]
[357735851,1744403443437,-151.0,0.0003,7]
[357735852,1744403443446,-151.0,0.0003,7]
[357735853,1744403443456,-151.0,0.0003,7]
[357735854,1744403443466,-151.0,0.0003,7]
[357735855,1744403443475,-152.361193,0.0003,7]
[357735856,1744403443485,-151.0,0.0003,7]
[357735857,1744403443494,-151.0,0.0003,7]
[357735858,1744403443503,-348.985679,0.0003,7]
[357735859,1744403443512,-348.985679,0.0003,7]
[357735860,1744403443521,-151.0,0.0003,7]
[357735861,1744403443530,-271.424257,0.0003,7]
[357735862,1744403443540,-212.0,0.0003,2]
[357735863,1744403443549,-256.066618,0.0003,7]
[357735864,1744403443558,-12011.44,0.0003011,2]
[357735865,1744403443567,-151.0,0.0003011,7]
[357735866,1744403443577,-151.0,0.0003011,7]
[357735867,1744403443586,-151.0,0.0003011,7]
[357735868,1744403443595,-151.0,0.0003011,7]
[357735869,1744403443604,-151.0,0.0003011,7]
[357735870,1744403443614,-980.39834,0.0003011,7]
[357735871,1744403443622,-151.0,0.0003011,7]
[357735872,1744403443632,-187.733659,0.0003011,7]
[357735873,1744403443641,-187.733659,0.0003011,7]
[357735874,1744403443650,-151.0,0.0003011,7]
[357735875,1744403443659,-151.0,0.0003011,7]
[357735876,1744403443669,-151.895648,0.0003011,7]
[357735877,1744403443678,-151.0,0.0003011,7]
[357735878,1744403443687,-814.499223,0.0003011,7]
[357735879,1744403443697,-814.499223,0.0003011,7]
[357735880,1744403443706,-151.0,0.0003011,7]
[357735881,1744403443715,-151.0,0.0003011,7]
[357735882,1744403443724,-252.07,0.00030136,2]
[357735883,1744403443734,-1504.22,0.00030137,2]
[357735884,1744403443744,-610.0,0.00030137,2]
[357735885,1744403443753,-1000.0,0.00030252,5]
[357735886,1744403443763,-1000.0,0.00030252,5]
[357735887,1744403443773,-2630.04,0.000306,2]
[357735888,1744403443783,-2562.93,0.000306,2]
[357735889,1744403443792,-1773.18,0.00030958,2]
[357735890,1744403443802,-200.0,0.00031,2]
[357735891,1744403443811,-550.0,0.00031,2]
[357735892,1744403443821,-151.44,0.0003137,2]
[357735893,1744403443831,-245.3828125,0.00031379,2]
[357735894,1744403443840,-500.0,0.00031379,2]
[357735895,1744403443849,-500.0,0.00031379,2]
[357735896,1744403443858,-11719.24916658,0.0003138,2]
[357735897,1744403444728,-23974.83479357,0.0003138,2]
[357735898,1744403444744,-252.07,0.00031506,2]
[357735899,1744403444757,-1504.22,0.00031507,2]
[357735900,1744403444772,-791.0,0.00031645,2]
[357735901,1744403444787,-1278.0,0.00031645,2]
[357735902,1744403444802,-544.0,0.00031645,2]
[357735903,1744403444816,-1437.0,0.00031645,2]
[357735904,1744403444832,-907.0,0.00031645,2]
[357735905,1744403444846,-4145.0,0.00031645,2]
[357735906,1744403444861,-575.0,0.00031645,2]
[357735907,1744403444878,-2045.0,0.00031645,2]
[357735908,1744403444895,-3952.0,0.00031645,2]
[357735909,1744403444910,-1287.0,0.00031645,2]
[357735910,1744403444925,-152.0,0.00031645,2]
[357735911,1744403444940,-1327.0,0.00031645,2]
[357735912,1744403444955,-150.01320829,0.00031956,3]
[357735913,1744403444970,-427.27001393,0.00031956,2]
[357735914,1744403444985,-281.26892602,0.00031956,2]
[357735915,1744403445001,-195.00829305,0.00031956,2]
[357735916,1744403445015,-1000.0,0.00032,3]
[357735917,1744403445030,-1000.0,0.00032,3]
[357735918,1744403445044,-1000.0,0.00032,3]
[357735919,1744403445059,-1000.0,0.00032,3]
[357735920,1744403445074,-1000.0,0.00032112,2]
[357735921,1744403445089,-381.04,0.00032315,30]
[357735922,1744403445107,-832.22,0.00032646,2]
[357735923,1744403445121,-252.07,0.00032876,2]
[357735924,1744403445136,-330.77,0.00032877,2]
[357735925,1744403445152,-1504.22,0.00032877,2]
[357735926,1744403445166,-1054.0,0.00033,3]
[357735927,1744403445181,-1000.0,0.00033,3]
[357735928,1744403445196,-1000.0,0.00033,3]
[357735929,1744403445211,-1221.0,0.00033,3]
[357735930,1744403445226,-600.0,0.00033,2]
[357735931,1744403445241,-175.0,0.00033,2]
[357735932,1744403445256,-3039.34995319,0.00033,2]
[357735933,1744403445271,-212.0,0.00033,2]
[357735934,1744403445286,-200.0,0.00033151,2]
[357735935,1744403445301,-1773.18,0.00033222,2]
[357735936,1744403445316,-374.0,0.000335,2]
[357735937,1744403445332,-2630.04,0.000338,2]
[357735938,1744403445347,-2562.93,0.000338,2]
[357735939,1744403445361,-1000.0,0.00034,4]
[357735940,1744403445376,-1000.0,0.00034,4]
[357735941,1744403445391,-168.58028,0.000342,2]
[357735942,1744403445405,-252.07,0.00034246,2]
[357735943,1744403445420,-500.0,0.00034247,7]
[357735944,1744403445436,-500.0,0.00034247,7]
[357735945,1744403445451,-500.0,0.00034247,7]
[357735946,1744403445466,-500.0,0.00034247,7]
[357735947,1744403445481,-500.0,0.00034247,7]
[357735948,1744403445496,-183.74428263,0.00034247,7]
[357735949,1744403445511,-500.0,0.00034247,7]
[357735950,1744403445527,-500.0,0.00034247,7]
[357735951,1744403445542,-500.0,0.00034247,7]
[357735952,1744403445557,-500.0,0.00034247,7]
[357735953,1744403445572,-500.0,0.00034247,7]
[357735954,1744403445586,-500.0,0.00034247,7]
[357735955,1744403445602,-500.0,0.00034247,7]
[357735956,1744403445617,-500.0,0.00034247,7]
[357735957,1744403445633,-500.0,0.00034247,7]
[357735958,1744403445647,-500.0,0.00034247,7]
[357735959,1744403445662,-500.0,0.00034247,7]
[357735960,1744403445677,-500.0,0.00034247,7]
[357735961,1744403445692,-500.0,0.00034247,7]
[357735962,1744403445706,-500.0,0.00034247,7]
[357735963,1744403445721,-500.0,0.00034247,7]
[357735964,1744403445736,-500.0,0.00034247,7]
[357735965,1744403445751,-500.0,0.00034247,7]
[357735966,1744403445766,-500.0,0.00034247,7]
[357735967,1744403445781,-500.0,0.00034247,7]
[357735968,1744403445796,-250.0,0.00034247,7]
[357735969,1744403445811,-500.0,0.00034247,7]
[357735970,1744403445823,-500.0,0.00034247,7]
[357735971,1744403446125,-500.0,0.00034247,7]
[357735972,1744403446141,-151.0,0.00034247,7]
[357735973,1744403446151,-500.0,0.00034247,2]
[357735974,1744403446160,-2630.04,0.000345,2]
[357735975,1744403446169,-2562.93,0.000345,2]
[357735976,1744403446183,-150.0,0.00034548,10]
[357735977,1744403446192,-151.0,0.00034645,7]
[357735978,1744403446201,-151.0,0.00034645,7]
[357735979,1744403446210,-152.874308,0.00034645,7]
[357735980,1744403446220,-151.945417,0.00034645,7]
[357735981,1744403446229,-151.0,0.00034645,7]
[357735982,1744403446238,-152.64924,0.00034645,7]
[357735983,1744403446247,-151.0,0.00034645,7]
[357735984,1744403446256,-791.0,0.00034645,2]
[357735985,1744403446266,-1278.0,0.00034645,2]
[357735986,1744403446275,-544.0,0.00034645,2]
[357735987,1744403446284,-1437.0,0.00034645,2]
[357735989,1744403446293,-907.0,0.00034645,2]
[357735990,1744403446303,-4145.0,0.00034645,2]
[357735991,1744403446313,-575.0,0.00034645,2]
[357735992,1744403446322,-2045.0,0.00034645,2]
[357735993,1744403446332,-1287.0,0.00034645,2]
[357735994,1744403446341,-152.0,0.00034645,2]
[357735995,1744403446351,-1327.0,0.00034645,2]
[357735996,1744403446360,-500.0,0.00034795,2]
[357735997,1744403446369,-171.63758355,0.000349,2]
[357735998,1744403446378,-500.0,0.00034999,2]
[357735999,1744403446388,-500.0,0.00034999,2]
[357736000,1744403446397,-500.0,0.00034999,2]
[357736001,1744403446406,-500.0,0.00034999,2]
[357736002,1744403446416,-1000.0,0.00035,4]
[357736003,1744403446425,-1000.0,0.00035,4]
[357736004,1744403446434,-1000.0,0.00035,4]
[357736005,1744403446443,-1000.0,0.00035,4]
[357736006,1744403446454,-793.0,0.00035,4]
[357736007,1744403446463,-24368.46495317,0.00035,2]
[357736008,1744403446473,-151.0,0.00035,7]
[357736009,1744403446482,-650.0,0.00035,2]
[357736010,1744403446491,-151.0,0.00035,7]
[357736011,1744403446500,-160.01,0.00035,2]
[357736012,1744403446510,-2000.0,0.00035,4]
[357736013,1744403446519,-757.97,0.00035068,2]
[357736014,1744403446529,-2630.04,0.000352,2]
[357736015,1744403446538,-2562.93,0.000352,2]
[357736016,1744403446549,-500.0,0.00035343,2]
[357736017,1744403446558,-1773.18,0.00035486,2]
[357736018,1744403446567,-252.07,0.00035616,2]
[357736019,1744403446577,-341.64,0.0003563,2]
[357736020,1744403446586,-165.861555,0.0003563,7]
[357736021,1744403446596,-500.0,0.00035891,2]
[357736022,1744403446606,-151.44,0.0003592,2]
[357736023,1744403446615,-796.07725495,0.0003593,7]
[357736024,1744403446625,-427.27001393,0.00035974,2]
[357736025,1744403446635,-212.0,0.00036,2]
[357736026,1744403446645,-2630.04,0.000361,2]
[357736027,1744403446655,-2562.93,0.000361,2]
[357736028,1744403446665,-3216.58152957,0.00036435,2]
[357736029,1744403446675,-160.01,0.00036435,2]
[357736030,1744403446684,-500.0,0.00036439,2]
[357736031,1744403446694,-20000.0,0.00036732,5]
[357736032,1744403446703,-158.281547,0.00036732,7]
[357736033,1744403446713,-193.0529274,0.00036859,4]
[357736034,1744403446724,-341.65,0.0003695,2]
[357736035,1744403446734,-252.07,0.00036986,2]
[357736036,1744403446744,-500.0,0.00036987,2]
[357736037,1744403446753,-700.0,0.00037,2]
[357736038,1744403446763,-381.04,0.00037205,30]
[357736039,1744403446773,-1057.85949852,0.0003724,5]
[357736040,1744403446782,-1051.03436231,0.0003724,5]
[357736041,1744403446791,-170.03365721,0.00037316,5]
[357736042,1744403446801,-444.43741202,0.00037395,2]
[357736043,1744403446812,-23204.8435819,0.00037439,2]
[357736044,1744403446821,-151.0,0.00037439,7]
[357736045,1744403446831,-500.0,0.00037535,2]
[357736046,1744403446843,-1676.1685386,0.0003759,2]
[357736047,1744403446852,-4218.71768225,0.00037618,2]
[357736048,1744403446862,-155.331284,0.00037618,7]
[357736049,1744403446872,-151.0,0.00037618,7]
[357736050,1744403446882,-151.0,0.00037618,7]
[357736051,1744403446892,-153.073968,0.00037618,7]
[357736052,1744403446901,-300.309066,0.00037618,7]
[357736053,1744403446911,-151.0,0.00037618,7]
[357736054,1744403446920,-791.0,0.00037645,2]
[357736055,1744403446930,-1278.0,0.00037645,2]
[357736056,1744403446940,-544.0,0.00037645,2]
[357736057,1744403446949,-1437.0,0.00037645,2]
[357736058,1744403446958,-907.0,0.00037645,2]
[357736059,1744403446968,-4145.0,0.00037645,2]
[357736060,1744403446978,-2045.0,0.00037645,2]
[357736061,1744403446987,-1173.086,0.00037645,2]
[357736062,1744403446996,-152.0,0.00037645,2]
[357736063,1744403447005,-1327.0,0.00037645,2]
[357736064,1744403447015,-200.0,0.00037696,10]
[357736065,1744403447024,-1773.18,0.0003775,2]
[357736066,1744403447034,-2000.0,0.0003781,3]
[357736067,1744403447043,-151.0,0.0003781,7]
[357736068,1744403447053,-152.597085,0.0003781,7]
[357736069,1744403447062,-2000.0,0.0003781,3]
[357736070,1744403447072,-225.0,0.00037899,2]
[357736071,1744403447081,-225.0,0.00037899,2]
[357736072,1744403447091,-225.0,0.00037899,2]
[357736073,1744403447102,-225.0,0.00037899,2]
[357736074,1744403447112,-843.92478674,0.0003795,40]
[357736075,1744403447239,-256.066618,0.000249,7]
[357736076,1744403447254,-256.066618,0.0003,7]
[357736077,1744403447264,-156.07521326,0.0003795,40]
[357736078,1744403447273,-151.0,0.00037973,7]
[357736079,1744403447282,-151.0,0.00037973,7]
[357736080,1744403447291,-194.37258,0.00037973,7]
[357736081,1744403447300,-151.44,0.0003799,2]
[357736082,1744403447310,-151.44,0.0003799,2]
[357736083,1744403447319,-151.44,0.0003799,2]
[357736084,1744403447328,-151.44,0.0003799,2]
[357736085,1744403447338,-151.44,0.0003799,2]
[357736086,1744403447347,-41.37329629,0.00037999,2]
[357736087,1744403447359,-458.62670371,0.00037999,2]
[357736088,1744403447369,-500.0,0.00037999,2]
[357736089,1744403447378,-206.28012142,0.00037999,2]
[357736090,1744403447389,-293.71987858,0.00037999,2]
[357736091,1744403447398,-500.0,0.00037999,2]
[357736092,1744403447408,-500.0,0.00037999,2]
[357736093,1744403447417,-500.0,0.00037999,2]
[357736094,1744403447426,-500.0,0.00037999,2]
[357736095,1744403447436,-325.08789063,0.00037999,2]
[357736096,1744403447446,-500.0,0.00037999,2]
[357736097,1744403447455,-500.0,0.00037999,2]
[357736098,1744403447465,-494.60885279,0.00038,2]
[357736099,1744403448825,-84429.51073493,0.00038,2]
[357736100,1744403448838,-4540.0,0.00038,2]
[357736101,1744403448854,-15932.14643303,0.00038,2]